Cogmind - Beta 9.3 *** ADVENTURER MODE // 2020.01.02 @ 00:18:02 Player: Lehitarien Result: Destroyed by Y-45 Defender with Beam Rifle Performance ------------- Evolutions (1) 500 Regions Visited (3) 600 Robots Destroyed (9) 45 Value Destroyed (208) 208 Prototype IDs (0) 0 Alien Tech Used (0) 0 Bonus (0) 0 TOTAL SCORE: 1353 Bonus ------- None Cogmind --------- Core Integrity 0/400 Matter 417/450 Energy 100/100 System Corruption 1% Temperature Cool (9) Movement Core (150) Ox2 Location -9/Storage Parts ------- > --- POWER (1) -------- (None) > --- PROPULSION (2) --- (None) > --- UTILITY (4) ------ Small Storage Unit Large Matter Pod Signal Interpreter > --- WEAPON (2) ------- (None) > --- INVENTORY (6) ---- Aluminum Leg Aluminum Leg Improved Targeting Computer Improved Targeting Computer Peak State ------------ > --- POWER ------------ Light Ion Engine > --- PROPULSION ------- Aluminum Leg Aluminum Leg > --- UTILITY ---------- Small Storage Unit Large Matter Pod Sensor Array Signal Interpreter > --- WEAPON ----------- EMP Blaster EMP Blaster > --- INVENTORY -------- Improved Targeting Computer Improved Targeting Computer [Rating: 11] Favorites ----------- Power Light Ion Engine Engine Light Ion Engine Propulsion Aluminum Leg Treads Light Treads Leg Aluminum Leg Utility Small Storage Unit Device Sensor Array Storage Small Storage Unit Processor Signal Interpreter Weapon EMP Blaster Energy Gun Small Laser Ballistic Gun Light Assault Rifle Ballistic Cannon Light Cannon Launcher EMP Blaster Build | -11 -10 -9 -9 ------- Run | Scr Mat Mat Sto Slots Evolved 2 | . . 2 . Power . | . . . . Propulsion . | . . . . Utility 2 | . . 2 . Weapon . | . . . . Parts Attached 17 | 7 5 5 . Power 3 | 2 . 1 . Engine 3 | 2 . 1 . Core . | . . . . Reactor . | . . . . Propulsion 4 | 2 . 2 . Treads 2 | . . 2 . Leg 2 | 2 . . . Wheel . | . . . . Hover . | . . . . Flight . | . . . . Utility 4 | 1 1 2 . Device 1 | . . 1 . Storage 2 | 1 1 . . Processor 1 | . . 1 . Hackware . | . . . . Protection . | . . . . Artifact . | . . . . Weapon 6 | 2 4 . . Energy Gun 1 | 1 . . . Energy Cannon . | . . . . Ballistic Gun 1 | 1 . . . Ballistic Cannon 2 | . 2 . . Launcher 2 | . 2 . . Special Weapon . | . . . . Impact Weapon . | . . . . Slashing Weapon . | . . . . Piercing Weapon . | . . . . Special Melee Weapon . | . . . . Unidentified Prototypes . | . . . . Parts Lost 7 | . . 4 3 Power 2 | . . 1 1 Propulsion 2 | . . . 2 Utility 1 | . . 1 . Weapon 2 | . . 2 . Highest Loss Streak 3 | . . 3 3 Average Slot Usage (%) 80 | . 87 83 58 Engine 12 | . 14 9 10 Treads 5 | . . 8 15 Leg 18 | . 28 13 . Device 2 | . . 8 . Storage 19 | . 17 22 22 Processor 5 | . . 11 11 Energy Gun 3 | . 7 . . Ballistic Gun 3 | . 7 . . Ballistic Cannon 4 | . 8 . . Launcher 4 | . 3 9 . Naked Turns . | . . . . Heaviest Build 19 | 9 18 19 17 Greatest Support 40 | 20 20 40 40 Greatest Overweight (x) 5 | . . . 5 Average Overweight (x) . | . . . . Largest Inventory Capacity 6 | 6 6 6 6 Average Capacity 5 | 5 6 6 6 Most Carried 5 | 2 5 5 4 Average Carried 2 | . 2 2 4 Final Capacity 6 | 6 6 6 6 Final Carried 4 | 1 4 4 4 Class Distribution -------------------- 100% | Mutant Dominant Class ---------------- Mutant | -10/Materials Mutant | -9/Materials Mutant | -9/Storage Resources | -11 -10 -9 -9 ----------- Run | Scr Mat Mat Sto Matter Collected 471 | 273 . 179 19 Remotely . | . . . . Salvage Created 342 | 102 . 221 19 Parts 21 | 5 . 12 4 Haulers Intercepted . | . . . . Recyclers Shooed 1 | . . 1 . Parts Field Recycled . | . . . . Retrieved Matter . | . . . . Parts Self-Destructed . | . . . . Prevented . | . . . . Kills | -11 -10 -9 -9 ------- Run | Scr Mat Mat Sto Combat Hostiles Destroyed 6 | . . 5 1 Melee 2 | . . 1 1 AOE 4 | . . 4 . Classes Destroyed 7 | 2 . 5 . Tunneler 1 | 1 . . . Recycler 1 | 1 . . . Watcher 1 | . . 1 . Swarmer 2 | . . 1 1 Grunt 2 | . . 2 . Brawler 1 | . . 1 . Sentry 1 | . . 1 . Best Kill Streak 5 | 2 . 5 1 Combat Bots Only 3 | . . 3 1 Max Kills in Single Turn 2 | 1 . 2 1 Gunslinging . | . . . . Exploded 2 | . . 2 . Melee 1 | . . 1 1 Uniques/NPCs Destroyed . | . . . . Combat | -11 -10 -9 -9 -------- Run | Scr Mat Mat Sto Damage Taken 1221 | . . 704 517 Core 400 | . . 160 240 Absorbed by Shields . | . . . . Core Remaining (%) 100 | 100 100 . . Volleys Fired 13 | 3 3 7 . Largest 2 | 2 2 2 . Hottest 66 | 60 60 66 . Shots Fired 20 | 6 6 8 . Gun 12 | 6 6 . . Cannon . | . . . . Launcher 8 | . . 8 . Special . | . . . . Kinetic 6 | 3 3 . . Thermal 6 | 3 3 . . Explosive . | . . . . Electromagnetic 8 | . . 8 . Robot Hit Streak 11 | 5 7 11 . Robot Miss Streak 1 | . 1 . . Penetration Max . | . . . . Secondary Targets . | . . . . Shots Hit Robots 18 | 5 5 8 . Core Hits 15 | 3 1 9 2 Critical Hits . | . . . . Critical Kills . | . . . . Critical Parts Destroyed . | . . . . Melee Attacks . | . . . . Impact . | . . . . Slashing . | . . . . Piercing . | . . . . Sneak Attacks . | . . . . Combat Hostiles . | . . . . Follow-up Attacks . | . . . . Damage Inflicted 446 | 48 44 345 9 Guns 92 | 48 44 . . Cannons . | . . . . Explosions 340 | . . 340 . Melee . | . . . . Ramming 14 | . . 5 9 Kinetic 38 | 16 22 . . Thermal 102 | 32 22 48 . Explosive . | . . . . Electromagnetic 292 | . . 292 . Impact . | . . . . Slashing . | . . . . Piercing . | . . . . Highest Corruption 1 | . . 1 1 Average Corruption 1 | . . 1 1 Corruption Purged . | . . . . Overload Shots . | . . . . Overflow Damage 1 | . . 1 . Projectiles . | . . . . Explosions 1 | . . 1 . Melee . | . . . . Knockbacks . | . . . . Impact . | . . . . Kinetic . | . . . . Secondary . | . . . . Self-Inflicted Damage 92 | . . 92 . Shots 9 | . . 9 . Rammed 5 | . . 2 3 Targets Rammed 6 | . . 3 3 Kicked . | . . . . Crushed 1 | . . 1 . Highest Temperature 40 | 40 40 5 . Average Temperature 22 | 23 23 5 . Received Heat Transfer 309 | . . 201 108 Siege Activations . | . . . . Robots Corrupted . | . . . . Combat Hostiles . | . . . . Parts Fried 2 | . . 2 . Impact Corruptions . | . . . . Robots Melted . | . . . . Combat Hostiles . | . . . . Parts Melted . | . . . . Heat Transferred 175 | 75 50 50 . Parts Sabotaged . | . . . . Parts Stolen . | . . . . Parts Stripped . | . . . . Power Chain Reactions 1 | . . 1 . Missiles Intercepted . | . . . . Alert | -11 -10 -9 -9 ------- Run | Scr Mat Mat Sto Peak Influence 148 | 10 20 148 87 Average Influence 38 | 1 13 86 59 Maximum Alert Level . | . . . . Low Security (%) 100 | 100 100 100 100 Level 1 . | . . . . Level 2 . | . . . . Level 3 . | . . . . Level 4 . | . . . . Level 5 . | . . . . High Security . | . . . . Max Security . | . . . . Squads Dispatched 2 | . 1 . 1 Investigation 1 | . 1 . . Extermination . | . . . . Reinforcement 1 | . . . 1 Assault . | . . . . Garrison . | . . . . Intercept . | . . . . Construction Impeded . | . . . . Haulers Reinforced . | . . . . Stealth | -11 -10 -9 -9 --------- Run | Scr Mat Mat Sto Distress Signals 1 | . . 1 . Communications Jammed . | . . . . Distress Signals . | . . . . Times Spotted 20 | . 2 11 7 Peak Tracking Total 6 | . 1 6 6 Tactical Retreats 1 | . . 1 . Traps | -11 -10 -9 -9 ------- Run | Scr Mat Mat Sto Traps Triggered . | . . . . Indirectly . | . . . . Trap Hack Attempts . | . . . . Triggered . | . . . . Disarmed . | . . . . Reprogrammed . | . . . . Reused . | . . . . Traps Extracted . | . . . . Installed . | . . . . Triggered . | . . . . Machines | -11 -10 -9 -9 ---------- Run | Scr Mat Mat Sto Machines Disabled 1 | . . 1 . Max in Single Turn 1 | . . 1 . Machines Sabotaged . | . . . . Garrisons Compromised . | . . . . Overloaded Fab Kills . | . . . . Fab Network Shutdowns . | . . . . Hacking | -11 -10 -9 -9 --------- Run | Scr Mat Mat Sto Machines Accessed 2 | . 2 . . Terminals 1 | . 1 . . Fabricators . | . . . . Repair Stations . | . . . . Recycling Units 1 | . 1 . . Scanalyzers . | . . . . Garrison Access . | . . . . Total Hacks 4 | . 4 . . Successful 3 | . 3 . . Failed 1 | . 1 . . Catastrophic . | . . . . Database Lockouts . | . . . . Manual . | . . . . Terminals 3 | . 3 . . Fabricators . | . . . . Repair Stations . | . . . . Recycling Units 1 | . 1 . . Scanalyzers . | . . . . Garrison Access . | . . . . Terminal Hacks 3 | . 3 . . Record 3 | . 3 . . Fabricator Hacks . | . . . . Repair Station Hacks . | . . . . Recycling Unit Hacks . | . . . . Scanalyzer . | . . . . Garrison Access Hacks . | . . . . Unauthorized Hacks . | . . . . Terminals . | . . . . Fabricators . | . . . . Repair Stations . | . . . . Recycling Units . | . . . . Scanalyzers . | . . . . Garrison Access . | . . . . Data Cores Recovered . | . . . . Used . | . . . . Hacking Detections 1 | . 1 . . Full Trace Events 1 | . 1 . . Feedback Events . | . . . . Feedback Blocked . | . . . . Robot Schematics Acquired . | . . . . Robots Built . | . . . . Matter . | . . . . Time . | . . . . Total Robot Build Rating . | . . . . Part Schematics Acquired . | . . . . Parts Built . | . . . . Matter . | . . . . Time . | . . . . Total Part Build Rating . | . . . . Parts Repaired . | . . . . Time . | . . . . Parts Recycled . | . . . . Recycled Matter . | . . . . Retrieved Matter . | . . . . Retrieved Components . | . . . . Parts Scanalyzed . | . . . . Part Schematics Acquired . | . . . . Parts Damaged . | . . . . Bothacking | -11 -10 -9 -9 ------------ Run | Scr Mat Mat Sto Used RIF Installer . | . . . . Robots Hacked . | . . . . Non-combat . | . . . . Combat . | . . . . Robot Hacks Applied . | . . . . Relay Couplers Released . | . . . . Robots Rewired . | . . . . Allies Hacked . | . . . . Hacks Repelled . | . . . . Allies | -11 -10 -9 -9 -------- Run | Scr Mat Mat Sto Total Allies . | . . . . Largest Group . | . . . . Highest-Rated Group . | . . . . Highest-Rated Ally . | . . . . Total Orders . | . . . . Ally Attacks . | . . . . Total Damage . | . . . . Kills . | . . . . Allies Corrupted . | . . . . Allies Melted . | . . . . Intel | -11 -10 -9 -9 ------- Run | Scr Mat Mat Sto Robot Analysis Total . | . . . . Derelict Logs Recovered . | . . . . Drone Launches . | . . . . Drone Recoveries . | . . . . Exploration | -11 -10 -9 -9 ------------- Run | Scr Mat Mat Sto Turns Passed 739 | 98 323 195 123 Spaces Moved 461 | 67 216 111 67 Core 15 | 8 . . 7 Treads 104 | . . 44 60 Legs 342 | 59 216 67 . Wheels . | . . . . Hover . | . . . . Flight . | . . . . Fastest Speed 50 | 50 120 120 150 Average Speed 129 | 111 120 135 167 Slowest Speed 300 | 120 120 160 300 Overloaded Moves . | . . . . Propulsion Burnouts . | . . . . Robots Hopped . | . . . . Cave-ins Triggered . | . . . . Exploration Rate (%) 18 | 4 44 12 15 Regions Visited 3 Branch Regions 1 Pre-discovered Areas . | . . . . Known Exits Taken 1 | . . 1 . Unknown Exits Taken 2 | 1 1 . . Scrap Searched . | . . . . Spaces Dug . | . . . . Terrain Destroyed 2 | . . 2 . Melee . | . . . . Projectile . | . . . . AOE 2 | . . 2 . Actions | -11 -10 -9 -9 --------- Run | Scr Mat Mat Sto Total 579 | 85 276 145 73 Wait 57 | . 37 17 3 Move 458 | 66 215 110 67 Hop . | . . . . Pick Up 21 | 8 10 3 . Fast Attach . | . . . . Attach 13 | 7 3 3 . Detach . | . . . . Swap 4 | . 2 2 . Drop 7 | 1 6 . . Fire 13 | 3 3 7 . Melee . | . . . . Ram 2 | . . . 2 Kick . | . . . . Crush 4 | . . 3 1 Escape Stasis . | . . . . Rewire . | . . . . Trap . | . . . . Miscellaneous . | . . . . Route ------- -11/Scrapyard -10/Materials -9/Materials -9/Storage History --------- Turn | Location | Event 20 | -11/Scrapyard | Discovered new exit (range 15) 99 | -11/Scrapyard | Entered Materials 311 | -10/Materials | Build established: Mutant 396 | -10/Materials | Discovered new exit (range 10) 422 | -10/Materials | Entered another Materials area 422 | -9/Materials | Evolved 2 slots: Utility x2 560 | -9/Materials | Lost 3 parts (1p2w) 601 | -9/Materials | Discovered new exit (range 10) 616 | -9/Materials | Identified exit to Storage 617 | -9/Materials | Entered Storage 714 | -9/Storage | Core integrity fell below 50% 729 | -9/Storage | Core integrity fell below 20% 740 | -9/Storage | Destroyed by Y-45 Defender with Beam Rifle Last Messages --------------- S-10 Pest destroyed. Crushed S-10 Pest. S-10 Pest destroyed. EXIT=FOUND EXIT=IDENTIFIED: STORAGE LOCATION=STORAGE GOAL=ESCAPE O-16 Technician: "IFF HANDSHAKE FAILED. SECURING TERMINAL." O-16 Technician uses terminal to summon reinforcements. ALERT: Hostiles spotted, dispatching reinforcements to Terminal S002. O-16 Technician locks terminal. Lgt. Treads destroyed. K-01 Serf collects debris. Slammed into S-10 Pest. S-10 Pest destroyed. [Achievement: Fist Fight] Acquired 19 matter. Lgt. Treads destroyed. Slammed into Y-45 Defender. Rnf. Ion Engine destroyed. Map ----- +----------------------------------------------------+ | ????????????????????????????????????????????? | | ????????????????????????????????????????????? | | ????????????????????????????????????????????? | | ????????????????????????????????????????????? | | ????????????????????????????????????????????? | | ??????????#####?????????????????????????????? | | ??????????#"""#?????????????????????????????? | | ????#####?#"R"#?????????????????????????????? | | ????# ###" "#####?????????????????????????? | | ????# # !! #?????????????????????????? | | ????# # != ####??????????????????????? | | ????# # "" #??????????????????????? | | ????# # """#??????????????????????? | | ????# + """ R"#??????????????????????? | | ????# # "T" """ """#??????????????????????? | | ????# # """ """ ####??????????????????????? | | ????# # #?????????????????????????? | | ????# ###############?????????????????????? | | ????# # #?????????????????????? | | ????# # """ """ """ #?????????????????????? | | ????# # """ """ """ #?????????????????????? | | ????# # """ """ """ #?????????????????????? | | ????# # [* #?????????????????????? | | ????# # = = #?????????????????????? | | ????# #####Y############a##???????????????? | | ????# s @ #?????????? | | ????# Y ^ #?????????? | | ????# s "" #?????????? | | ????### ########## "Y #?????????? | | ??????# #????????# "" ##+##+#?????????? | | ??????# #????????# #???????????????? | | ??????# #????????# #???????????????? | | ??????#/#???????? g#???????????????? | | ?????? ???????? ^ a +???????????????? | | ?????? ??????? #???????????????? | | ????? ?????? !! #???????????????? | | ????? ?????? ![ ?????????????????? | | ????# || ???? ![ ??????????????????? | | ????# | ????## #######???????????????????? | | ????# ????# ??????????????????????????? | | ????# ????? ??????????????????????????? | | ????###"T"# #???????????????????????????????? | | ???????"""###???????????????????????????????? | | ???????###??????????????????????????????????? | | ????????????????????????????????????????????? | | ????????????????????????????????????????????? | | ????????????????????????????????????????????? | | ????????????????????????????????????????????? | | ????????????????????????????????????????????? | | ????????????????????????????????????????????? | +----------------------------------------------------+ Best States ------------- Heat Dissipation 28 Energy Generation 12 Energy Capacity 265 Matter Stores 417 Matter Capacity 450 Sight Range 16 Robot Scan Range 10 Terrain Scan Density 10 Resistance: KI 20 Resistance: TH 20 Resistance: EX 20 Resistance: EM 20 Resistance: I 20 Resistance: S 20 Resistance: P 20 Evasion (%) 40 Recoil Reduction 2 Offensive Hacking 10 Item Schematics ----------------- None Robot Schematics ------------------ None Fabricated ------------ Nothing Alien Tech Used ----------------- None Achievements -------------- Fist Fight Let's See Who's Tougher Challenges ------------ None Game ------ Seed ColdHardcellFlail Manual? 0 Play Time 00:13:19 Cumulative 6.8 hours Start 2020.01.02 @ 00:04:21 End 2020.01.02 @ 00:18:02 Sessions 1 Manual Loads 0 Difficulty Adventurer Special Mode None Game No. 4 Rogue 0 Adventurer 4 Explorer 0 Win Type - Total 0 Types 0/0/0/0/0/0/0 Lore% 16 Gallery% 12 Achievement% 13 Wizard Run 0 Options --------- ASCII 0 Keyboard 0 Movement Numpad Keybinds 0 Fullscreen 1 Font 18/X11 Map View 76x50 Tactical HUD 0 Map Filters NONE Filters NONE Steam 1 RUN: 57b04085-61c6-45d2-b655-c7918614c931